bitfinex/quotes_ETHUSD_20250511
["timestamp","ask_amount","ask_price","bid_price","bid_amount"]
[1746942407990,2.625,2558.3,2557.4,0.82349766]
[1746942408290,5.23628383,2558.2,2557.4,0.7844]
[1746942408494,3.90928446,2558.1,2557.4,0.7844]
[1746942408882,3.90936338,2558.0,2557.4,0.7844]
[1746942409784,3.90946387,2557.9,2557.4,0.7844]
[1746942410297,3.90963571,2557.8,2557.4,0.7844]
[1746942410612,0.39096357,2557.7,2556.7,0.7541]
[1746942410799,3.01596357,2557.7,2556.7,0.7541]
[1746942411371,6.92575666,2557.7,2556.7,0.7541]
[1746942411590,6.92575666,2557.7,2556.7,0.772]
[1746942411788,7.33480581,2557.7,2556.7,0.772]
[1746942411967,3.91047883,2557.3,2556.7,0.772]
[1746942413301,3.9103761,2557.3,2556.7,0.772]
[1746942413475,3.9106328,2557.2,2556.7,0.772]
[1746942413672,6.53457674,2557.2,2556.7,0.772]
[1746942413903,1.45345767,2557.1,2556.7,0.772]
[1746942414100,1.67252145,2557.1,2556.7,0.772]
[1746942414492,1.45345767,2557.1,2556.7,0.772]
[1746942414801,3.91107049,2556.9,2556.2,0.772]
[1746942415264,19.47628808,2557.1,2556.2,0.772]
[1746942415469,10.29320881,2557.0,2556.2,0.772]
[1746942415686,0.2188635,2556.9,2556.2,0.772]
[1746942416087,0.2188635,2556.8,2556.2,0.772]
[1746942416685,8.0,2557.0,2556.2,0.772]
[1746942417085,11.91089056,2557.0,2556.2,0.772]
[1746942417305,6.01814778,2556.9,2556.2,0.772]
[1746942419087,3.91153441,2556.6,2556.2,0.772]
[1746942419420,3.91175089,2556.4,2555.3,0.7844]
[1746942419976,8.22379352,2556.5,2555.3,0.7844]
[1746942420195,8.8251,2556.5,2555.3,0.7844]
[1746942420424,13.18525915,2556.5,2555.5,0.7844]
[1746942420593,1.27365689,2556.5,2555.5,0.7844]
[1746942420986,3.91175089,2556.4,2555.5,0.7844]
[1746942421186,3.91192875,2556.3,2555.5,0.7844]
[1746942422121,1.27365689,2556.5,2555.5,0.7844]
[1746942422294,8.0,2556.8,2555.7,0.7563]
[1746942422495,2.626,2556.9,2555.9,0.7563]
[1746942422701,2.626,2556.9,2556.1,0.7563]
[1746942425636,11.48704224,2556.8,2556.1,0.7563]
[1746942425822,2.24240422,2556.7,2556.1,0.7563]
[1746942426136,3.91170531,2556.5,2555.5,0.7563]
[1746942426296,2.624,2556.4,2555.5,0.7563]
[1746942426498,2.626,2556.3,2555.5,0.7563]
[1746942427424,2.24240422,2556.7,2555.5,0.7563]
[1746942427624,0.8311,2557.0,2555.7,0.7563]
[1746942427824,8.0,2556.7,2555.8,0.7563]
[1746942428396,2.626,2556.8,2555.8,0.7563]
[1746942428701,2.626,2556.8,2555.9,0.79541955]
[1746942428936,2.626,2556.8,2555.9,0.7563]
[1746942429137,2.624,2556.9,2556.1,0.7563]
[1746942431139,6.53510097,2556.9,2556.1,0.7563]
[1746942431342,2.624,2556.9,2556.1,0.7563]
[1746942433552,2.624,2557.1,2556.1,0.7563]
[1746942433747,4.29750422,2557.1,2556.1,0.7563]
[1746942435950,3.91084063,2557.0,2556.1,0.7563]
[1746942436444,3.48704224,2556.7,2556.1,0.7563]
[1746942436659,2.624,2556.6,2556.1,0.7563]
[1746942436837,7.30710313,2556.5,2555.7,0.7844]
[1746942437012,8.30933812,2556.5,2555.7,0.7844]
[1746942437434,4.39773499,2556.5,2555.7,0.7844]
[1746942438055,3.91213968,2556.2,2555.7,0.7844]
[1746942438233,3.48704224,2556.4,2555.7,0.7844]
[1746942438406,1.17964086,2556.3,2555.7,0.7844]
[1746942438613,1.39856845,2556.3,2555.7,0.7844]
[1746942438814,5.31059842,2556.3,2555.7,0.7844]
[1746942439028,3.9121476,2556.2,2555.7,0.7844]
[1746942439244,5.31051716,2556.3,2555.7,0.7844]
[1746942439441,4.79190422,2556.2,2555.7,0.7844]
[1746942439661,4.131183,2556.1,2555.7,0.7844]
[1746942439860,4.131183,2556.1,2555.4,0.7844]
[1746942439861,0.50784814,2556.1,2555.4,0.7844]
[1746942440066,8.69087263,2556.1,2555.4,0.7844]
[1746942440227,2.624,2556.0,2555.4,0.7844]
[1746942440427,3.75548726,2555.9,2555.4,0.7844]
[1746942441170,3.75548726,2555.9,2554.7,0.7844]
[1746942441477,3.91279223,2555.8,2554.7,0.82353941]
[1746942441649,3.91279223,2555.8,2554.8,0.7844]
[1746942441835,0.76682795,2555.7,2554.8,0.7844]
[1746942442236,4.30484224,2555.5,2554.8,0.7844]
[1746942442456,2.624,2555.4,2554.8,0.7844]
[1746942442657,2.624,2555.3,2554.8,0.7844]
[1746942443635,6.537445,2555.3,2554.8,0.7844]
[1746942443974,0.9161445,2555.2,2554.8,0.7844]
[1746942446469,1.7339445,2555.2,2554.2,0.7844]
[1746942446969,0.9161445,2555.2,2554.2,0.7844]
[1746942447371,4.82979249,2555.2,2554.2,0.7844]
[1746942447559,0.9161445,2555.2,2554.2,0.7844]
[1746942447762,0.35401445,2555.1,2554.4,0.7844]
[1746942448769,0.8221,2556.5,2555.2,0.7844]
[1746942448979,8.0,2556.3,2555.2,0.7844]
[1746942449160,7.39926552,2556.1,2555.2,0.7844]
[1746942449331,3.91269286,2555.8,2555.2,0.7844]
[1746942449685,4.73479286,2555.8,2555.2,0.7844]
[1746942449829,0.47347929,2555.7,2555.2,0.7844]
[1746942450034,4.73485807,2555.8,2555.2,0.7844]
[1746942450265,6.53741174,2556.0,2555.2,0.7844]
[1746942450266,3.91255885,2555.9,2555.2,0.7844]
[1746942450429,3.4471,2556.0,2555.2,0.7844]
[1746942450631,0.8221,2556.0,2555.2,0.7844]
[1746942450858,3.91231124,2556.1,2555.2,0.7844]
[1746942451069,5.72544112,2556.0,2555.2,0.7844]
[1746942451682,3.09844112,2556.0,2555.2,0.7844]
[1746942451843,2.625,2556.0,2555.2,0.7844]
[1746942456649,0.7576,2556.5,2555.2,0.7844]
[1746942456650,2.625,2556.5,2555.3,0.7614]
[1746942456874,6.53662445,2556.5,2555.3,0.7614]
[1746942457078,0.21830513,2556.4,2555.3,0.7614]
[1746942457283,1.15628623,2556.4,2555.5,0.7614]
[1746942457641,4.84974283,2556.4,2555.5,0.7614]
[1746942458264,0.9379811,2556.4,2555.5,0.7614]
[1746942458575,3.91193554,2556.3,2555.5,0.7614]
[1746942458777,4.84980652,2556.4,2555.5,0.7614]
[1746942458977,0.74748065,2556.3,2555.5,0.7614]
[1746942459479,4.65941455,2556.3,2555.5,0.7614]
[1746942460564,0.74748065,2556.3,2555.5,0.7614]
[1746942461540,0.9379811,2556.4,2555.5,0.7614]
[1746942461960,2.625,2556.5,2555.5,0.7614]
[1746942462865,2.625,2556.5,2555.7,0.7844]
[1746942463067,2.625,2556.5,2555.8,0.03912222]
[1746942463261,2.625,2556.5,2555.9,0.7844]
[1746942463561,2.624,2556.4,2555.9,0.7844]
[1746942463886,4.436904,2556.3,2555.9,0.7844]
[1746942464587,3.91206401,2556.2,2555.9,0.7844]
[1746942464894,0.5249,2556.3,2555.7,0.7844]
[1746942465092,2.624,2556.5,2555.7,0.7844]
[1746942467395,2.624,2556.5,2555.6,0.03912339]
[1746942467550,3.48704224,2556.3,2555.3,0.7708]
[1746942467746,0.21882377,2556.4,2555.4,0.7708]
[1746942468016,1.30310615,2556.4,2555.5,0.7708]
[1746942468588,0.21882377,2556.3,2555.5,0.7708]
[1746942469291,0.21882377,2556.3,2555.7,0.7844]
[1746942469488,3.91131148,2556.7,2555.7,0.7844]
[1746942469788,6.53516894,2556.8,2555.7,0.7844]
[1746942469992,0.91741689,2556.7,2555.8,0.7844]
[1746942470588,4.82874013,2556.7,2555.8,0.7844]
[1746942470894,0.91741689,2556.7,2555.8,0.7844]
[1746942471454,4.82873523,2556.7,2555.8,0.7844]
[1746942471681,0.91741689,2556.7,2555.8,0.7844]
[1746942471892,1.11464169,2556.6,2555.8,0.7844]
[1746942472056,3.91169572,2556.5,2555.8,0.7844]
[1746942472787,5.24487583,2556.6,2555.8,0.7844]
[1746942472965,5.02617876,2556.6,2555.8,0.7844]
[1746942473494,0.35414169,2556.6,2555.8,0.7844]
[1746942473655,0.35414169,2556.6,2555.5,0.7844]
[1746942474157,4.26571289,2556.6,2555.5,0.7844]
[1746942474550,0.35414169,2556.6,2555.5,0.7844]
[1746942476796,2.624,2556.5,2555.5,0.7844]
[1746942477299,2.624,2556.5,2555.6,0.82352345]
[1746942477599,2.624,2556.5,2555.7,0.7844]
[1746942478889,3.91101472,2556.9,2555.7,0.7844]
[1746942479190,20.61446621,2557.3,2556.0,0.7844]
[1746942479364,20.61446621,2557.3,2556.2,0.7844]
[1746942479566,2.09017925,2557.2,2556.2,0.7844]
[1746942479888,0.2191069,2557.1,2556.2,0.7844]
[1746942480515,2.09017925,2557.2,2556.2,0.7844]
[1746942480516,0.2191069,2557.0,2556.2,0.7844]
[1746942480983,3.91107853,2556.9,2556.2,0.7844]
[1746942481186,0.2191069,2557.0,2556.2,0.7844]
[1746942481353,6.53798595,2556.9,2556.2,0.7844]
[1746942481789,3.91140966,2556.7,2556.2,0.7844]
[1746942481994,7.30332523,2556.7,2556.2,0.7844]
[1746942482289,3.48704224,2556.5,2555.3,0.7565]
[1746942482458,3.91206969,2556.2,2555.3,0.7565]
[1746942482657,4.69445175,2556.2,2555.3,0.7565]
[1746942483269,0.2191069,2556.1,2555.3,0.7565]
[1746942484300,6.53636746,2556.0,2555.3,0.7565]
[1746942484489,2.624,2556.0,2555.3,0.7565]
[1746942487387,2.624,2556.7,2555.6,0.7594]
[1746942487705,2.624,2556.7,2555.7,0.79852345]
[1746942487878,2.624,2556.7,2555.8,0.7594]
[1746942488203,0.21929347,2556.6,2556.2,0.7594]
[1746942488365,0.21929347,2556.6,2556.5,0.7594]
[1746942488974,2.624,2557.4,2556.5,0.7594]
[1746942489175,3.91005365,2557.6,2556.5,0.7594]
[1746942489366,2.624,2557.6,2556.5,0.7594]
[1746942489580,0.21906762,2557.5,2556.5,0.7594]
[1746942489791,0.79491001,2557.5,2556.6,0.7594]
[1746942490527,0.21906762,2557.4,2556.6,0.7594]
[1746942490702,0.21906762,2557.4,2556.7,0.03910959]
[1746942491005,2.624,2557.9,2556.8,0.7594]
[1746942491202,2.624,2557.9,2557.0,0.7594]
[1746942491371,2.8864,2557.9,2557.1,0.79850236]
[1746942491702,2.624,2557.9,2557.1,0.79850236]
[1746942491917,7.36378433,2558.5,2557.1,0.79850236]
[1746942492118,3.90869293,2558.4,2557.1,0.7594]
[1746942492411,3.90895665,2558.3,2557.1,0.7594]
[1746942492711,6.94224224,2558.5,2557.1,0.7594]
[1746942492915,1.34747129,2558.4,2557.1,0.7594]
[1746942493072,3.90949295,2557.9,2557.1,0.7594]
[1746942493274,3.90983538,2557.7,2557.1,0.7594]
[1746942493699,9.96889874,2557.9,2557.1,0.7594]
[1746942493906,9.16049874,2557.9,2557.1,0.7594]
[1746942494113,0.91604987,2557.8,2557.1,0.7594]
[1746942494275,4.82580431,2557.8,2557.1,0.7594]
[1746942494479,3.90980079,2557.7,2557.1,0.7594]
[1746942494818,0.91604987,2557.8,2557.1,0.7594]
[1746942495028,4.82579305,2557.8,2557.1,0.7594]
[1746942495318,4.91754303,2557.7,2557.1,0.7594]
[1746942495540,1.0076793,2557.7,2557.1,0.7594]
[1746942496429,4.91746746,2557.7,2557.1,0.7594]
[1746942497026,1.7884793,2557.7,2557.1,0.7594]
[1746942497224,3.91036907,2557.4,2556.8,0.7844]
[1746942497407,0.39103691,2557.4,2556.8,0.7844]
[1746942497929,3.91009484,2557.5,2556.8,0.7844]
[1746942498219,1.7884793,2557.7,2556.8,0.7844]
[1746942499534,1.0076793,2557.7,2556.8,0.7844]
[1746942499839,2.624,2557.9,2556.8,0.7844]
[1746942500001,2.624,2557.9,2556.8,0.82350608]
[1746942501039,2.624,2557.9,2556.8,0.7844]
[1746942501201,2.624,2557.9,2557.1,0.7844]
[1746942501649,3.90964328,2557.8,2557.1,0.7844]
[1746942501942,2.624,2557.9,2557.1,0.7844]
[1746942502525,6.53346167,2557.9,2557.1,0.7844]
[1746942502733,3.90975571,2557.8,2557.1,0.7844]
[1746942502900,3.90982041,2557.7,2557.1,0.7844]
[1746942503105,4.3009187,2557.6,2557.1,0.7844]
[1746942503305,0.39098204,2557.6,2557.1,0.7844]
[1746942504643,5.246,2557.8,2557.1,0.7844]
[1746942505101,3.90978399,2557.7,2557.1,0.7844]
[1746942505610,5.246,2557.8,2557.1,0.7844]
[1746942506116,9.15564013,2557.8,2557.1,0.7844]
[1746942506328,5.246,2557.8,2557.1,0.7844]
[1746942506640,0.99362844,2557.7,2557.1,0.7844]
[1746942507315,4.90343015,2557.7,2557.1,0.7844]
[1746942507845,4.90343324,2557.7,2557.1,0.7844]
[1746942508464,3.90994716,2557.6,2557.1,0.7844]
[1746942508616,0.99362844,2557.7,2557.1,0.7844]
[1746942508815,0.62396284,2557.6,2557.1,0.7844]
[1746942510237,0.99362844,2557.7,2557.1,0.7844]
[1746942512757,3.90996834,2557.6,2557.1,0.7844]
[1746942513145,0.7947,2557.6,2557.1,0.7844]
[1746942513368,0.55,2557.5,2556.8,0.7844]
[1746942513654,4.70548425,2557.1,2556.6,0.7844]
[1746942513860,7.32848425,2557.1,2556.6,0.7844]
[1746942514363,2.623,2557.1,2556.6,0.7844]
[1746942521963,2.623,2557.6,2556.6,0.7844]
[1746942522125,2.623,2557.6,2556.8,0.752]
[1746942522770,0.21912865,2557.5,2556.8,0.752]
[1746942523676,2.623,2557.6,2556.8,0.752]
[1746942524962,0.21918217,2557.5,2556.8,0.752]
[1746942525592,2.623,2557.6,2556.8,0.752]
[1746942527869,2.623,2557.6,2556.9,0.03910669]
[1746942528031,2.623,2557.6,2557.0,0.752]
[1746942529677,3.90948775,2557.9,2557.0,0.752]
[1746942529832,3.90948775,2557.9,2557.1,8.0]
[1746942530261,0.21912714,2557.8,2557.1,8.0]
[1746942531262,0.21912714,2557.8,2557.2,0.752]
[1746942531464,0.21912714,2557.7,2557.2,0.752]
[1746942532286,3.90936645,2558.0,2557.2,0.752]
[1746942532453,0.90319779,2557.9,2557.2,0.752]
[1746942532642,2.623,2558.1,2557.3,0.7844]
[1746942533037,0.21912493,2558.0,2557.3,0.7844]
[1746942533735,2.623,2558.1,2557.3,0.7844]
[1746942535442,1.34747129,2558.4,2557.3,0.82350041]
[1746942535642,1.34747129,2558.4,2557.4,0.7844]
[1746942535881,1.34747129,2558.4,2557.5,0.82349663]
[1746942536185,0.21894891,2558.3,2557.5,0.82349663]
[1746942536470,0.21894891,2558.3,2557.5,0.7844]
[1746942536679,0.21894891,2558.2,2557.5,0.7844]
[1746942536901,0.21894891,2558.2,2557.6,0.7844]
[1746942537408,1.34747129,2558.4,2557.6,0.7844]
[1746942537900,3.02838272,2558.4,2557.6,0.7844]
[1746942538109,0.21883669,2558.3,2557.6,0.7844]
[1746942538606,6.9370766,2558.4,2557.6,0.7844]
[1746942538807,0.69370766,2558.3,2557.6,0.7844]
[1746942538981,0.69370766,2558.3,2557.6,0.7344]
[1746942539185,4.60256819,2558.3,2557.6,0.7344]
[1746942539805,0.69370766,2558.3,2557.6,0.7344]
[1746942541086,0.69370766,2558.3,2557.6,3.3554]
[1746942541605,0.37220904,2558.2,2557.6,0.7344]
[1746942542187,2.622,2558.6,2557.8,0.7344]
[1746942542787,2.622,2558.6,2557.9,0.7344]
[1746942543004,4.30291143,2559.2,2558.1,0.7344]
[1746942543171,2.622,2559.2,2558.1,0.77348738]
[1746942543577,2.622,2559.2,2558.2,1.68091143]
[1746942543877,0.2622,2559.1,2558.4,0.7344]
[1746942545820,2.622,2559.7,2558.7,0.7344]
[1746942545990,2.622,2559.7,2558.9,0.7344]
[1746942547391,6.5287219,2559.7,2558.9,0.7344]
[1746942547793,2.622,2559.7,2558.9,0.7344]
[1746942548417,0.82094897,2559.6,2558.9,0.7344]
[1746942551107,3.90762777,2559.1,2558.3,0.7344]
[1746942551308,1.68091143,2558.8,2558.4,0.52]
[1746942551633,3.90854016,2558.5,2558.4,0.52]
[1746942551952,0.55,2558.4,2557.5,0.7344]
[1746942552112,1.68091143,2558.0,2557.5,0.7344]
[1746942552444,3.90930615,2558.0,2557.5,0.7344]
[1746942552936,5.59021758,2558.0,2557.5,0.7344]
[1746942553143,3.90947878,2557.9,2557.5,0.7344]
[1746942553339,0.55903902,2557.8,2557.5,0.7344]
[1746942553629,2.23995045,2557.8,2557.1,0.7344]
[1746942553830,0.55903902,2557.8,2557.1,0.7344]
[1746942554407,2.619,2557.9,2557.1,0.7344]
[1746942555014,6.52856596,2557.9,2557.1,0.7344]
[1746942555212,3.90973359,2557.8,2557.1,0.7344]
[1746942555831,3.90977126,2557.7,2557.1,0.7344]
[1746942556529,0.55,2557.6,2557.1,0.7344]
[1746942556863,0.48558158,2557.5,2556.8,0.7344]
[1746942557660,4.39576684,2557.5,2556.8,0.7344]
[1746942558917,0.48558158,2557.5,2556.8,0.7344]
[1746942559113,3.91030779,2557.4,2556.8,0.7344]
[1746942559451,3.91037811,2557.3,2556.8,0.7344]
[1746942559661,0.39103781,2557.2,2556.8,0.7344]
[1746942561372,0.8304,2558.0,2556.8,0.7344]
[1746942561554,0.8304,2558.0,2556.9,0.7344]
[1746942561872,3.90948817,2557.9,2556.9,0.7344]
[1746942562279,14.068,2558.2,2557.0,0.03910628]
[1746942562575,1.74998,2558.1,2557.1,0.7344]
[1746942562982,5.65913667,2558.1,2557.1,0.7344]
[1746942563167,1.74998,2558.1,2557.1,0.7344]
[1746942563670,5.65922283,2558.1,2557.1,0.7344]
[1746942564372,1.74998,2558.1,2557.1,0.7344]
[1746942564572,1.581798,2558.0,2557.2,0.7344]
[1746942566195,1.581798,2558.0,2557.3,0.03909969]
[1746942566345,1.581798,2558.0,2557.4,0.7344]
[1746942568964,3.90945697,2557.9,2557.4,0.7344]
[1746942569261,3.909698,2557.8,2556.9,0.7344]
[1746942569491,4.69168698,2557.7,2556.9,0.7344]
[1746942569673,3.90999464,2557.6,2556.9,0.7344]
[1746942569878,0.7819155,2557.7,2556.9,0.7344]
[1746942570799,3.91006472,2557.6,2556.9,0.7344]
[1746942571015,0.7819155,2557.7,2556.9,0.7344]
[1746942571214,4.69177033,2557.7,2556.9,0.7344]
[1746942571370,4.45934723,2557.6,2556.9,0.7344]
[1746942572182,0.54941703,2557.6,2556.9,0.7344]
[1746942572591,3.91040332,2557.3,2556.9,0.7344]
[1746942572799,4.45937765,2557.6,2556.9,0.7344]
[1746942573096,0.54941703,2557.6,2556.9,0.7344]
[1746942573409,0.96981941,2557.5,2556.9,0.7344]
[1746942578983,0.8024,2557.4,2556.3,0.7344]
[1746942579320,4.71270237,2557.4,2556.5,0.7344]
[1746942579526,0.8024,2557.4,2556.5,0.7344]
[1746942579722,0.8024,2557.4,2556.5,2.41580097]
[1746942581486,0.96981941,2557.5,2556.7,2.41580097]
[1746942581685,2.618,2557.6,2556.8,0.7344]
[1746942582187,0.21914969,2557.5,2556.8,0.7344]
[1746942583127,0.21914969,2557.4,2556.8,0.7344]
[1746942583827,0.21914969,2557.5,2556.8,0.7344]
[1746942586023,1.68140097,2557.2,2556.3,0.7344]
[1746942586230,6.89592302,2557.4,2556.5,0.7344]
[1746942586720,0.21922482,2557.3,2556.5,0.7344]
[1746942587814,0.21922482,2557.2,2556.5,0.7344]
[1746942588700,2.43560097,2557.4,2556.5,0.7344]
[1746942589431,0.21920226,2557.3,2556.5,0.7344]
[1746942589723,0.87570592,2557.3,2556.5,0.7344]
[1746942590212,0.21920226,2557.2,2556.5,0.7344]
[1746942590601,0.21920226,2557.2,2556.5,0.77351087]
[1746942590801,4.12935392,2557.5,2556.5,0.7344]
[1746942591002,0.21920226,2557.5,2556.5,0.7344]
[1746942591301,4.12928277,2557.5,2556.5,0.7344]
[1746942591507,1.18221837,2557.4,2556.5,0.7344]
[1746942591713,1.40142063,2557.4,2556.5,0.7344]
[1746942592422,0.21920226,2557.3,2556.5,0.7344]
[1746942593831,0.21920226,2557.3,2556.6,1.68140097]
[1746942594007,0.21920226,2557.3,2556.7,0.7344]
[1746942594326,0.21920226,2557.5,2556.7,0.7344]
[1746942594494,5.23387397,2557.5,2556.7,0.7344]
[1746942595131,1.32375478,2557.5,2556.7,0.7344]
[1746942595328,0.21920226,2557.4,2556.7,0.7344]
[1746942596236,0.21920226,2557.5,2556.7,0.7344]
[1746942596936,0.21920226,2557.4,2556.7,0.7344]
[1746942597814,0.21920226,2557.3,2556.7,0.7344]
[1746942598697,0.21920226,2557.5,2556.7,0.7344]
[1746942599525,0.21920226,2557.4,2556.7,0.7344]
[1746942600315,0.21920226,2557.3,2556.7,0.7344]
[1746942601025,0.21920226,2557.5,2556.7,0.7344]
[1746942601220,0.21920226,2557.5,2556.8,0.7344]
[1746942601540,2.73310323,2557.5,2556.8,0.7344]
[1746942601746,3.91030007,2557.4,2556.8,0.7344]
[1746942602111,1.90060323,2557.3,2556.8,0.7344]
[1746942602632,0.58109365,2557.2,2556.8,0.7344]
[1746942602840,0.21920226,2557.1,2556.4,0.7344]
[1746942603605,0.21920226,2557.0,2556.5,0.7344]
[1746942604733,0.21920226,2557.4,2556.5,0.7344]
[1746942605433,0.21920226,2557.3,2556.5,0.7344]
[1746942605631,0.21920226,2557.3,2556.6,0.7344]
[1746942605936,0.21920226,2557.2,2556.6,0.7344]
[1746942606953,0.21920226,2557.1,2556.6,0.7344]
[1746942607406,0.21920226,2557.5,2556.9,0.7344]
[1746942608340,0.21920226,2557.4,2556.9,0.7344]
[1746942609042,0.21920226,2557.5,2556.9,8.7344]
[1746942609924,0.21920226,2557.5,2556.9,0.7344]
[1746942611046,1.90060323,2557.5,2556.9,0.7344]
[1746942611354,1.02070226,2557.4,2556.9,0.7344]
[1746942612244,0.21920226,2557.4,2556.9,0.7344]
[1746942612412,0.21920226,2557.3,2556.9,0.7344]
[1746942612606,0.21920226,2557.3,2556.3,0.7344]
[1746942612835,1.90060323,2557.3,2556.5,0.7344]
[1746942613143,0.21920226,2557.2,2556.5,0.7344]
[1746942613342,0.8015,2557.0,2556.5,0.7344]
[1746942613541,1.68140097,2556.6,2556.3,0.7344]
[1746942613715,0.21920226,2557.2,2556.4,1.68140097]
[1746942613920,0.21920226,2557.2,2556.6,1.68140097]
[1746942614259,0.21920226,2557.3,2556.8,1.68140097]
[1746942614425,0.21920226,2557.3,2557.2,2.41580097]
[1746942614611,0.21920226,2557.3,2557.2,2.75361699]
[1746942614816,0.2,2557.5,2557.3,0.7344]
[1746942615647,0.2,2557.5,2557.4,0.03909978]
[1746942615853,0.2,2557.5,2557.3,0.7344]
[1746942616629,5.59029629,2558.3,2557.3,0.5344]
[1746942617223,4.12819059,2558.2,2557.3,0.5344]
[1746942617426,0.21915217,2558.2,2557.3,0.5344]
[1746942617616,0.88024798,2558.2,2557.3,0.5344]
[1746942617949,0.21915217,2558.1,2557.3,0.5344]
[1746942618741,0.21915217,2558.0,2557.3,0.5344]
[1746942619654,0.66109581,2558.2,2557.3,0.5344]
[1746942620029,0.21903823,2558.1,2557.3,0.5344]
[1746942620232,0.86607639,2558.1,2557.3,0.5344]
[1746942620863,0.64703816,2558.1,2557.4,0.03910003]
[1746942621020,2.48290097,2558.4,2557.2,1.72049841]
[1746942621219,0.21895539,2558.3,2557.3,0.5344]
[1746942621535,0.21895539,2558.3,2557.4,0.03909877]
[1746942621711,0.21895539,2558.2,2557.5,0.5344]
[1746942622654,2.48290097,2558.4,2557.5,0.5344]
[1746942622830,0.2482901,2558.3,2557.5,0.5344]
[1746942624158,0.21886472,2558.2,2557.5,0.5344]
[1746942624756,0.21886472,2558.2,2557.6,0.03909647]
[1746942624953,0.21886472,2558.2,2557.7,0.5344]
[1746942625113,0.2482901,2558.3,2557.7,0.5344]
[1746942625321,5.5909712,2557.9,2556.6,1.68140097]
[1746942625548,5.5909712,2557.9,2556.9,0.5344]
[1746942625762,5.5909712,2557.9,2556.9,8.5344]
[1746942626026,1.68140097,2557.3,2556.9,0.5344]
[1746942626221,3.91112236,2556.9,2556.2,0.5344]
[1746942626422,1.68140097,2556.9,2556.2,0.5344]
[1746942626617,1.68140097,2556.3,2555.8,0.5344]
[1746942627520,1.68140097,2556.1,2555.2,0.5344]
[1746942627721,3.91257156,2555.9,2555.2,0.5344]
[1746942627918,0.39125716,2555.8,2555.2,0.5344]
[1746942628149,3.91252574,2555.9,2555.2,0.5344]
[1746942629460,4.27654894,2556.1,2555.2,0.5344]
[1746942629666,3.9125317,2555.9,2555.2,0.5344]
[1746942629958,3.91276777,2555.8,2555.2,0.5344]
[1746942630147,0.39127678,2555.7,2555.2,0.5344]
[1746942630353,0.26656936,2555.7,2555.2,0.5344]
[1746942630923,4.27654894,2556.1,2555.2,0.5344]
[1746942631422,0.16130948,2556.0,2555.2,0.5344]
[1746942631723,4.07376775,2556.0,2555.2,0.5344]
[1746942633362,0.16130948,2556.0,2555.2,0.5344]
[1746942633568,5.227,2556.2,2555.2,0.5344]
[1746942633863,0.13060718,2556.1,2555.5,0.5344]
[1746942634024,18.75833087,2556.8,2555.6,2.613]
[1746942634348,0.12129948,2556.7,2555.7,0.03912258]
[1746942634561,4.03259157,2556.7,2555.6,2.613]
[1746942634718,1.88796916,2556.6,2555.7,8.0]
[1746942634922,5.92055626,2556.6,2555.7,8.0]
[1746942636359,2.00908839,2556.6,2555.7,8.0]
[1746942636865,2.00908839,2556.6,2555.6,2.613]
[1746942636866,3.91167517,2556.5,2555.6,8.0]
[1746942637158,4.02253291,2556.5,2555.6,8.0]
[1746942637347,0.9822061,2556.4,2555.6,8.0]
[1746942637549,0.11049717,2556.3,2555.6,8.0]
[1746942638125,0.11049717,2556.3,2555.6,8.03912556]
[1746942638566,4.50396916,2556.6,2555.6,8.03912556]
[1746942638763,0.11235689,2556.5,2555.6,8.0]
[1746942638961,0.5739895,2556.5,2555.6,8.0]
[1746942639376,0.5739895,2556.5,2555.7,0.03912385]
[1746942639727,0.5739895,2556.5,2555.6,8.0]
[1746942640372,4.48567712,2556.5,2555.6,8.0]
[1746942640569,3.91181195,2556.4,2555.6,8.0]
[1746942640864,0.11199632,2556.3,2555.6,8.0]
[1746942641227,0.11199632,2556.3,2555.5,0.5344]
[1746942641428,0.11199632,2556.3,2555.0,0.55]
[1746942641429,4.46217972,2556.2,2555.0,5.229]
[1746942641659,4.02397841,2556.1,2555.1,8.0]
[1746942641863,5.21362127,2556.1,2555.1,8.0]
[1746942642279,0.11163569,2556.1,2555.2,0.5344]
[1746942648082,0.11163569,2556.1,2555.3,0.03912769]
[1746942648553,0.10921269,2556.1,2555.3,0.03912769]
[1746942650286,0.10921269,2556.1,2555.4,1.6829745]
[1746942650486,0.7945,2556.6,2555.9,0.5344]
[1746942650795,0.11169875,2556.5,2555.9,0.5344]
[1746942651952,0.11169875,2556.5,2555.8,8.0]
[1746942652148,0.76174755,2556.5,2555.8,8.0]
[1746942652755,0.76174755,2556.5,2555.7,0.5344]
[1746942652951,4.67335543,2556.5,2555.7,0.5344]
[1746942653151,0.7945,2556.3,2555.5,0.5344]
[1746942653477,0.11115787,2556.2,2555.5,0.5344]
[1746942653789,0.59290805,2556.2,2555.5,0.5344]
[1746942654897,0.59290805,2556.2,2555.3,8.5344]
[1746942655071,0.7945,2556.1,2555.3,0.5344]
[1746942655399,0.11100903,2556.0,2555.3,0.5344]
[1746942656356,0.21936556,2555.9,2555.1,0.5344]
[1746942656558,0.11064832,2555.8,2555.1,0.5344]
[1746942657697,0.79123524,2556.0,2555.1,0.5344]
[1746942657997,0.11082868,2555.9,2555.1,0.5344]
[1746942658299,0.756,2555.8,2554.9,11.1464]
[1746942658613,0.756,2555.8,2554.9,0.5344]
[1746942658614,0.11046794,2555.7,2554.9,0.5344]
[1746942658925,0.756,2555.6,2554.6,0.5344]
[1746942659067,0.10922731,2555.5,2554.6,0.5344]
[1746942660461,0.10922731,2555.5,2554.7,0.03913475]
[1746942660657,0.10922731,2555.5,2554.6,0.5344]
[1746942662185,0.10922731,2555.5,2554.7,0.03913628]
[1746942662379,0.21939606,2555.4,2554.6,3.1464]
[1746942662808,0.10839381,2555.3,2555.0,3.50116244]
[1746942663007,0.10839381,2555.3,2555.2,0.55]
[1746942663328,0.8325,2556.6,2555.3,12.03556244]
[1746942663496,0.8325,2556.4,2555.3,12.03556244]
[1746942663676,0.93366469,2556.3,2555.3,11.1464]